[Event "*** Titled Tuesday Blitz"]
[Site "Chess.com"]
[Date "2020.04.14"]
[Round "4"]
[White "joksijoksi"]
[Black "Arencibia"]
[Result "1/2-1/2"]
[WhiteElo "2316"]
[BlackElo "2480"]
[TimeControl "180+1"]
[EndTime "10:40:43 PDT"]
[Termination "Game drawn by agreement"]

1. e4 {[%clk 0:03:00.9]} 1... e5 {[%clk 0:02:59.2]} 2. Nf3 {[%clk 0:02:57.9]}
2... Nc6 {[%clk 0:02:59.4]} 3. Nc3 {[%clk 0:02:47.3]} 3... Nf6 {[%clk
0:02:58.3]} 4. Bb5 {[%clk 0:02:45]} 4... Nd4 {[%clk 0:02:56.5]} 5. Nxd4 {[%clk
0:02:23.3]} 5... exd4 {[%clk 0:02:55.7]} 6. e5 {[%clk 0:02:24.2]} 6... dxc3
{[%clk 0:02:55.2]} 7. exf6 {[%clk 0:02:23.3]} 7... Qxf6 {[%clk 0:02:55.7]} 8.
dxc3 {[%clk 0:02:19.6]} 8... Bc5 {[%clk 0:02:55.5]} 9. O-O {[%clk 0:02:19.1]}
9... O-O {[%clk 0:02:55.2]} 10. Bd3 {[%clk 0:02:14.9]} 10... d6 {[%clk
0:02:54.9]} 11. Qh5 {[%clk 0:02:07.2]} 11... g6 {[%clk 0:02:29.3]} 12. Qg5
{[%clk 0:02:05.5]} 12... Qxg5 {[%clk 0:02:28.9]} 13. Bxg5 {[%clk 0:02:05.7]}
13... Kg7 {[%clk 0:02:25.4]} 14. Rfe1 {[%clk 0:02:01]} 14... Be6 {[%clk
0:02:25.3]} 15. Be3 {[%clk 0:01:54.4]} 15... Bb6 {[%clk 0:02:13.7]} 16. Bxb6
{[%clk 0:01:52.7]} 16... axb6 {[%clk 0:02:13.9]} 17. a3 {[%clk 0:01:51.2]} 17...
g5 {[%clk 0:02:10.2]} 18. c4 {[%clk 0:01:48.1]} 18... h5 {[%clk 0:02:08.4]} 19.
Re3 {[%clk 0:01:47.2]} 19... h4 {[%clk 0:02:06.8]} 20. Rae1 {[%clk 0:01:45.4]}
20... Ra5 {[%clk 0:01:52.2]} 21. f4 {[%clk 0:01:26.6]} 21... gxf4 {[%clk
0:01:44.2]} 22. Rf3 {[%clk 0:01:25.1]} 22... h3 {[%clk 0:01:36]} 23. gxh3 {[%clk
0:01:07.3]} 23... Rg5+ {[%clk 0:01:32.7]} 24. Kf2 {[%clk 0:01:06.4]} 24... Rh8
{[%clk 0:01:32.5]} 25. Rg1 {[%clk 0:00:59.7]} 25... f6 {[%clk 0:01:27.9]} 26.
Bf1 {[%clk 0:00:47.7]} 26... Rh4 {[%clk 0:01:24.8]} 27. b3 {[%clk 0:00:44.2]}
27... Kf7 {[%clk 0:01:00.8]} 28. Rc3 {[%clk 0:00:36.6]} 28... Re5 {[%clk
0:00:47.7]} 29. Bd3 {[%clk 0:00:29.1]} 29... Bxh3 {[%clk 0:00:30.6]} 30. Bg6+
{[%clk 0:00:28.8]} 30... Kf8 {[%clk 0:00:28.9]} 31. Rf3 {[%clk 0:00:27.6]} 31...
Be6 {[%clk 0:00:28]} 32. Bd3 {[%clk 0:00:27]} 32... Rxh2+ {[%clk 0:00:27.5]} 33.
Rg2 {[%clk 0:00:25.2]} 33... Rxg2+ {[%clk 0:00:25.6]} 34. Kxg2 {[%clk 0:00:26]}
34... d5 {[%clk 0:00:24.4]} 35. Rxf4 {[%clk 0:00:25.8]} 35... Ke7 {[%clk
0:00:24.4]} 36. cxd5 {[%clk 0:00:25]} 36... Bxd5+ {[%clk 0:00:25.1]} 37. Kf2
{[%clk 0:00:25.6]} 37... c5 {[%clk 0:00:24]} 38. Rh4 {[%clk 0:00:25.5]} 38...
Kd6 {[%clk 0:00:23.1]} 39. Rh6 {[%clk 0:00:24.9]} 39... Kc7 {[%clk 0:00:19.7]}
40. Rxf6 {[%clk 0:00:24.3]} 40... Bc6 {[%clk 0:00:19.8]} 41. Rf7+ {[%clk
0:00:24]} 41... Kd6 {[%clk 0:00:19.3]} 42. a4 {[%clk 0:00:23.2]} 42... Rh5
{[%clk 0:00:17.3]} 43. Rf6+ {[%clk 0:00:23.2]} 43... Ke5 {[%clk 0:00:16.8]} 44.
Rf7 {[%clk 0:00:21.2]} 44... Kd4 {[%clk 0:00:15.6]} 45. Rf4+ {[%clk 0:00:18.5]}
45... Kc3 {[%clk 0:00:15.9]} 46. Rc4+ {[%clk 0:00:18.1]} 46... Kb2 {[%clk
0:00:16.2]} 47. Ke3 {[%clk 0:00:16.2]} 47... Rh3+ {[%clk 0:00:16.3]} 48. Kd2
{[%clk 0:00:14.8]} 48... Bd5 {[%clk 0:00:16.5]} 49. Rf4 {[%clk 0:00:14.2]} 49...
Rh2+ {[%clk 0:00:16.7]} 50. Ke3 {[%clk 0:00:14.4]} 50... Bc6 {[%clk 0:00:15.7]}
51. Rf2 {[%clk 0:00:14.1]} 51... Rxf2 {[%clk 0:00:15.4]} 52. Kxf2 {[%clk
0:00:14.7]} 52... Bd5 {[%clk 0:00:15.7]} 53. Ke3 {[%clk 0:00:14.8]} 53... c4
{[%clk 0:00:16.1]} 54. bxc4 {[%clk 0:00:13.9]} 54... Bc6 {[%clk 0:00:16.4]} 55.
Kd4 {[%clk 0:00:14.2]} 55... Bxa4 {[%clk 0:00:16.7]} 56. c3 {[%clk 0:00:14.3]}
56... Bc6 {[%clk 0:00:16.9]} 57. Bf1 {[%clk 0:00:13.1]} 57... Ka3 {[%clk
0:00:16.8]} 58. c5 {[%clk 0:00:13.5]} 58... b5 {[%clk 0:00:16.4]} 59. Be2 {[%clk
0:00:12.8]} 59... b4 {[%clk 0:00:16.1]} 60. cxb4 {[%clk 0:00:12]} 60... Kxb4
{[%clk 0:00:16.7]} 61. Bd3 {[%clk 0:00:12.5]} 61... Ka5 {[%clk 0:00:16.4]}
1/2-1/2

[Event "*** Titled Tuesday Blitz"]
[Site "Chess.com"]
[Date "2020.04.14"]
[Round "4"]
[White "avantage_ru"]
[Black "GMSrinath"]
[Result "1/2-1/2"]
[WhiteElo "2576"]
[BlackElo "2780"]
[TimeControl "180+1"]
[EndTime "10:40:44 PDT"]
[Termination "Game drawn by repetition"]

1. g3 {[%clk 0:02:57.4]} 1... c5 {[%clk 0:02:56.5]} 2. Bg2 {[%clk 0:02:56.4]}
2... Nc6 {[%clk 0:02:57.4]} 3. c4 {[%clk 0:02:54.9]} 3... g6 {[%clk 0:02:57.8]}
4. Nc3 {[%clk 0:02:54.9]} 4... Bg7 {[%clk 0:02:58.3]} 5. e3 {[%clk 0:02:54.8]}
5... e6 {[%clk 0:02:58.8]} 6. Nge2 {[%clk 0:02:54.8]} 6... Nge7 {[%clk
0:02:59.4]} 7. Nf4 {[%clk 0:02:54.8]} 7... O-O {[%clk 0:02:58.6]} 8. d3 {[%clk
0:02:54.8]} 8... d6 {[%clk 0:02:59]} 9. O-O {[%clk 0:02:54.7]} 9... Rb8 {[%clk
0:02:57.1]} 10. Qd2 {[%clk 0:02:54.4]} 10... a6 {[%clk 0:02:56.9]} 11. b3 {[%clk
0:02:54.4]} 11... b5 {[%clk 0:02:57.5]} 12. Bb2 {[%clk 0:02:54.3]} 12... Bb7
{[%clk 0:02:56.9]} 13. Rfd1 {[%clk 0:02:32.3]} 13... Ne5 {[%clk 0:02:53.2]} 14.
Qe2 {[%clk 0:02:23.8]} 14... Bxg2 {[%clk 0:02:42.7]} 15. Kxg2 {[%clk 0:02:24.7]}
15... Qb6 {[%clk 0:02:43.3]} 16. Rac1 {[%clk 0:02:12.6]} 16... Rfd8 {[%clk
0:02:38.2]} 17. d4 {[%clk 0:02:06.7]} 17... Qb7+ {[%clk 0:02:22.5]} 18. f3
{[%clk 0:02:03.5]} 18... cxd4 {[%clk 0:02:23.4]} 19. exd4 {[%clk 0:02:02.7]}
19... N5c6 {[%clk 0:02:24.3]} 20. d5 {[%clk 0:01:43.3]} 20... Nd4 {[%clk
0:02:22.9]} 21. Rxd4 {[%clk 0:01:43.5]} 21... Bxd4 {[%clk 0:02:23.8]} 22. dxe6
{[%clk 0:01:43.2]} 22... Nf5 {[%clk 0:02:14]} 23. Ncd5 {[%clk 0:01:37.9]} 23...
fxe6 {[%clk 0:02:10.5]} 24. Nxe6 {[%clk 0:01:29.7]} 24... Bxb2 {[%clk
0:01:32.7]} 25. Qxb2 {[%clk 0:01:27]} 25... Ne3+ {[%clk 0:01:33.6]} 26. Nxe3
{[%clk 0:01:25.7]} 26... Re8 {[%clk 0:01:34.2]} 27. Ng4 {[%clk 0:01:08.8]} 27...
Rxe6 {[%clk 0:01:31.9]} 28. Nh6+ {[%clk 0:01:08.8]} 28... Kf8 {[%clk 0:01:32.6]}
29. Qh8+ {[%clk 0:01:08.7]} 29... Ke7 {[%clk 0:01:33]} 30. Qxh7+ {[%clk
0:01:07.9]} 30... Ke8 {[%clk 0:01:32.1]} 31. Qg8+ {[%clk 0:01:06.6]} 31... Kd7
{[%clk 0:01:32.4]} 32. Qf7+ {[%clk 0:01:03.9]} 32... Re7 {[%clk 0:01:32.1]} 33.
Qxg6 {[%clk 0:01:04.1]} 33... Re2+ {[%clk 0:01:20.5]} 34. Kh3 {[%clk 0:01:01.1]}
34... Qxf3 {[%clk 0:01:19]} 35. Qh7+ {[%clk 0:00:31.4]} 35... Re7 {[%clk
0:01:12.8]} 36. Qf5+ {[%clk 0:00:31.5]} 36... Qxf5+ {[%clk 0:01:08.1]} 37. Nxf5
{[%clk 0:00:32.4]} 37... Rh8+ {[%clk 0:01:00.3]} 38. Kg4 {[%clk 0:00:31.9]}
38... Re4+ {[%clk 0:00:55]} 39. Kf3 {[%clk 0:00:30.3]} 39... Re5 {[%clk
0:00:55.6]} 40. g4 {[%clk 0:00:29.5]} 40... Rxh2 {[%clk 0:00:55]} 41. Rd1 {[%clk
0:00:27.7]} 41... Re6 {[%clk 0:00:50]} 42. cxb5 {[%clk 0:00:26.8]} 42... axb5
{[%clk 0:00:50.9]} 43. a4 {[%clk 0:00:26]} 43... bxa4 {[%clk 0:00:44.8]} 44.
bxa4 {[%clk 0:00:26.9]} 44... Ra2 {[%clk 0:00:45.1]} 45. Rd4 {[%clk 0:00:26.2]}
45... Kc6 {[%clk 0:00:43.3]} 46. Kf4 {[%clk 0:00:25.2]} 46... d5 {[%clk
0:00:42.6]} 47. g5 {[%clk 0:00:20.5]} 47... Re1 {[%clk 0:00:26.6]} 48. g6 {[%clk
0:00:18.8]} 48... Rf2+ {[%clk 0:00:25.3]} 49. Kg5 {[%clk 0:00:18.4]} 49... Ref1
{[%clk 0:00:22.2]} 50. Ne7+ {[%clk 0:00:10.8]} 50... Kd6 {[%clk 0:00:20.3]} 51.
Nxd5 {[%clk 0:00:10.1]} 51... Rf5+ {[%clk 0:00:19.5]} 52. Kh6 {[%clk 0:00:10.3]}
52... Rh1+ {[%clk 0:00:18.5]} 53. Kg7 {[%clk 0:00:10]} 53... Rxd5 {[%clk
0:00:19.1]} 54. Rxd5+ {[%clk 0:00:10.2]} 54... Kxd5 {[%clk 0:00:20]} 55. Kf6
{[%clk 0:00:10]} 55... Rf1+ {[%clk 0:00:19.8]} 56. Ke7 {[%clk 0:00:10]} 56...
Re1+ {[%clk 0:00:17.8]} 57. Kf7 {[%clk 0:00:10.1]} 57... Kd6 {[%clk 0:00:14.5]}
58. g7 {[%clk 0:00:10]} 58... Rf1+ {[%clk 0:00:15]} 59. Ke8 {[%clk 0:00:10.3]}
59... Rg1 {[%clk 0:00:15.1]} 60. Kf7 {[%clk 0:00:09.8]} 60... Rf1+ {[%clk
0:00:15.4]} 61. Ke8 {[%clk 0:00:09.9]} 61... Re1+ {[%clk 0:00:15.5]} 62. Kf7
{[%clk 0:00:10]} 62... Rf1+ {[%clk 0:00:15.7]} 1/2-1/2

[Event "*** Titled Tuesday Blitz"]
[Site "Chess.com"]
[Date "2020.04.14"]
[Round "4"]
[White "AlexVanGog"]
[Black "joppie2"]
[Result "1-0"]
[WhiteElo "2691"]
[BlackElo "2913"]
[TimeControl "180+1"]
[EndTime "10:40:46 PDT"]
[Termination "AlexVanGog won on time"]

1. Nf3 {[%clk 0:02:54.2]} 1... c6 {[%clk 0:03:00.9]} 2. g3 {[%clk 0:02:54.5]}
2... d5 {[%clk 0:03:01.8]} 3. Bg2 {[%clk 0:02:54.9]} 3... g6 {[%clk 0:03:02.7]}
4. O-O {[%clk 0:02:55]} 4... Bg7 {[%clk 0:03:03.6]} 5. d4 {[%clk 0:02:55.7]}
5... Nf6 {[%clk 0:03:03.8]} 6. Nbd2 {[%clk 0:02:55.6]} 6... O-O {[%clk
0:03:04.7]} 7. c4 {[%clk 0:02:55.4]} 7... a5 {[%clk 0:03:05.6]} 8. b3 {[%clk
0:02:55.4]} 8... a4 {[%clk 0:03:06.2]} 9. Bb2 {[%clk 0:02:55.6]} 9... Bf5 {[%clk
0:03:02.9]} 10. e3 {[%clk 0:02:55.4]} 10... Nbd7 {[%clk 0:03:00.2]} 11. Qe2
{[%clk 0:02:52.5]} 11... a3 {[%clk 0:02:52.4]} 12. Bc3 {[%clk 0:02:52.2]} 12...
Ne4 {[%clk 0:02:52.7]} 13. Nxe4 {[%clk 0:02:51.5]} 13... Bxe4 {[%clk 0:02:53.6]}
14. Bh3 {[%clk 0:02:50.4]} 14... dxc4 {[%clk 0:02:48.5]} 15. bxc4 {[%clk
0:02:48.9]} 15... Bxf3 {[%clk 0:02:44.1]} 16. Qxf3 {[%clk 0:02:48.6]} 16... e5
{[%clk 0:02:44.8]} 17. Rfd1 {[%clk 0:02:41.5]} 17... exd4 {[%clk 0:02:44.8]} 18.
Bxd4 {[%clk 0:02:41.1]} 18... Bxd4 {[%clk 0:02:44]} 19. Rxd4 {[%clk 0:02:40.4]}
19... Ne5 {[%clk 0:02:42.5]} 20. Qf4 {[%clk 0:02:30.7]} 20... Qa5 {[%clk
0:02:35.2]} 21. Rad1 {[%clk 0:02:21.8]} 21... Rae8 {[%clk 0:02:19.3]} 22. Bg2
{[%clk 0:02:21.5]} 22... Qc3 {[%clk 0:02:08.9]} 23. Qh6 {[%clk 0:02:11.5]} 23...
f5 {[%clk 0:01:23.3]} 24. h3 {[%clk 0:02:05.3]} 24... Qc2 {[%clk 0:01:16.5]} 25.
Rd6 {[%clk 0:01:37.3]} 25... Qxa2 {[%clk 0:00:54.4]} 26. f4 {[%clk 0:01:07.6]}
26... Qb2 {[%clk 0:00:35.9]} 27. fxe5 {[%clk 0:01:03.3]} 27... Qxe5 {[%clk
0:00:36.8]} 28. Rd7 {[%clk 0:00:50.3]} 28... Re7 {[%clk 0:00:22.4]} 29. Rxe7
{[%clk 0:00:50.1]} 29... Qxe7 {[%clk 0:00:23.3]} 30. Qf4 {[%clk 0:00:50]} 30...
a2 {[%clk 0:00:21.4]} 31. Qd4 {[%clk 0:00:44.5]} 31... Ra8 {[%clk 0:00:18.9]}
32. c5 {[%clk 0:00:32.9]} 32... Kf7 {[%clk 0:00:14.7]} 33. Bf1 {[%clk
0:00:29.3]} 33... Qf6 {[%clk 0:00:09.3]} 34. Bc4+ {[%clk 0:00:24.3]} 34... Kg7
{[%clk 0:00:09.7]} 35. Ra1 {[%clk 0:00:21.9]} 35... Qxd4 {[%clk 0:00:09.1]} 36.
exd4 {[%clk 0:00:22.2]} 36... Ra4 {[%clk 0:00:10]} 37. Bxa2 {[%clk 0:00:22]}
37... Kf6 {[%clk 0:00:08.6]} 38. Kf2 {[%clk 0:00:21.9]} 38... Ra3 {[%clk
0:00:09.2]} 39. Ke2 {[%clk 0:00:18.6]} 39... g5 {[%clk 0:00:09.1]} 40. Kd2
{[%clk 0:00:18.7]} 40... h5 {[%clk 0:00:07.8]} 41. Kc2 {[%clk 0:00:18.5]} 41...
g4 {[%clk 0:00:06.4]} 42. hxg4 {[%clk 0:00:17.8]} 42... fxg4 {[%clk 0:00:07.3]}
43. Rf1+ {[%clk 0:00:15.5]} 43... Kg5 {[%clk 0:00:04.9]} 44. Bb3 {[%clk
0:00:16.1]} 44... Ra8 {[%clk 0:00:05]} 45. Rf7 {[%clk 0:00:15.7]} 45... Re8
{[%clk 0:00:03.8]} 46. Rxb7 {[%clk 0:00:14.6]} 46... Re2+ {[%clk 0:00:04]} 47.
Kc3 {[%clk 0:00:14.1]} 47... Re3+ {[%clk 0:00:03.9]} 48. Kb4 {[%clk 0:00:14.5]}
48... Rxg3 {[%clk 0:00:04.8]} 49. d5 {[%clk 0:00:15.1]} 49... cxd5 {[%clk
0:00:03.2]} 50. c6 {[%clk 0:00:15.5]} 50... Rg1 {[%clk 0:00:02.4]} 51. c7 {[%clk
0:00:15.3]} 51... Rc1 {[%clk 0:00:03.1]} 52. Bxd5 {[%clk 0:00:13.5]} 52... h4
{[%clk 0:00:03.1]} 53. Bc4 {[%clk 0:00:13.7]} 53... Rb1+ {[%clk 0:00:01.4]} 54.
Kc5 {[%clk 0:00:13.3]} 54... Rxb7 {[%clk 0:00:01.9]} 55. c8=Q {[%clk 0:00:13.4]}
55... Rg7 {[%clk 0:00:01.9]} 56. Qd8+ {[%clk 0:00:13.1]} 56... Kh5 {[%clk
0:00:00.7]} 57. Qh8+ {[%clk 0:00:13]} 57... Kg6 {[%clk 0:00:01.1]} 58. Bd3+
{[%clk 0:00:12.9]} 1-0

[Event "*** Titled Tuesday Blitz"]
[Site "Chess.com"]
[Date "2020.04.14"]
[Round "4"]
[White "mirciulica14"]
[Black "NormWeinstein"]
[Result "1-0"]
[WhiteElo "2621"]
[BlackElo "2361"]
[TimeControl "180+1"]
[EndTime "10:40:46 PDT"]
[Termination "mirciulica14 won by resignation"]

1. d4 {[%clk 0:03:00.9]} 1... c5 {[%clk 0:02:58.3]} 2. d5 {[%clk 0:03:00.7]}
2... e5 {[%clk 0:02:58.8]} 3. e4 {[%clk 0:03:00.2]} 3... d6 {[%clk 0:02:59.2]}
4. Nc3 {[%clk 0:03:00.7]} 4... Be7 {[%clk 0:02:59.2]} 5. Nf3 {[%clk 0:02:50.2]}
5... Bg4 {[%clk 0:02:57.5]} 6. Be2 {[%clk 0:02:50.7]} 6... Bxf3 {[%clk
0:02:56.6]} 7. Bxf3 {[%clk 0:02:51.6]} 7... Bg5 {[%clk 0:02:56.4]} 8. O-O {[%clk
0:02:49.2]} 8... Bxc1 {[%clk 0:02:55.7]} 9. Qxc1 {[%clk 0:02:50.1]} 9... Nf6
{[%clk 0:02:55.4]} 10. g3 {[%clk 0:02:50.4]} 10... h5 {[%clk 0:02:54.7]} 11. h4
{[%clk 0:02:45.1]} 11... Nbd7 {[%clk 0:02:53.7]} 12. Qg5 {[%clk 0:02:44]} 12...
g6 {[%clk 0:02:48.9]} 13. a3 {[%clk 0:02:40.8]} 13... a6 {[%clk 0:02:48.2]} 14.
Bg2 {[%clk 0:02:32.9]} 14... b5 {[%clk 0:02:30.1]} 15. Bh3 {[%clk 0:02:03.4]}
15... b4 {[%clk 0:02:13.2]} 16. axb4 {[%clk 0:02:02.9]} 16... cxb4 {[%clk
0:02:11.9]} 17. Bxd7+ {[%clk 0:01:17.9]} 17... Nxd7 {[%clk 0:02:05.7]} 18. Na2
{[%clk 0:01:01.3]} 18... Qxg5 {[%clk 0:01:56.3]} 19. hxg5 {[%clk 0:01:02.2]}
19... Rb8 {[%clk 0:01:55.5]} 20. Nc1 {[%clk 0:00:58.3]} 20... Nc5 {[%clk
0:01:54.9]} 21. f3 {[%clk 0:00:58.6]} 21... Ke7 {[%clk 0:01:41.1]} 22. Nd3
{[%clk 0:00:57.5]} 22... Rhc8 {[%clk 0:01:41.3]} 23. Nxc5 {[%clk 0:00:48.9]}
23... Rxc5 {[%clk 0:01:40.9]} 24. Rxa6 {[%clk 0:00:48.9]} 24... Rxc2 {[%clk
0:01:40.4]} 25. Ra7+ {[%clk 0:00:28.5]} 25... Ke8 {[%clk 0:01:39.7]} 26. Rf2
{[%clk 0:00:20.8]} 26... b3 {[%clk 0:01:37.2]} 27. Ra6 {[%clk 0:00:18.7]} 27...
Kd7 {[%clk 0:01:33.5]} 28. Ra7+ {[%clk 0:00:19.1]} 28... Rc7 {[%clk 0:01:31.3]}
29. Rxc7+ {[%clk 0:00:16.6]} 29... Kxc7 {[%clk 0:01:31.2]} 30. Rf1 {[%clk
0:00:17.5]} 30... Rb4 {[%clk 0:01:21.5]} 31. Rc1+ {[%clk 0:00:16]} 31... Kd7
{[%clk 0:01:21.7]} 32. Rc3 {[%clk 0:00:14.8]} 32... Rb7 {[%clk 0:01:10.1]} 33.
Kf2 {[%clk 0:00:12.1]} 33... Ke7 {[%clk 0:01:10.5]} 34. Ke3 {[%clk 0:00:11]}
34... f6 {[%clk 0:01:10.9]} 35. gxf6+ {[%clk 0:00:11.3]} 35... Kxf6 {[%clk
0:01:10.8]} 36. Rc6 {[%clk 0:00:12]} 36... Ke7 {[%clk 0:01:11.2]} 37. Kd3 {[%clk
0:00:12.4]} 37... g5 {[%clk 0:01:10.3]} 38. Rc1 {[%clk 0:00:09.9]} 38... Rb8
{[%clk 0:01:06.2]} 39. Rh1 {[%clk 0:00:09.7]} 39... Rf8 {[%clk 0:01:02.9]} 40.
Ke3 {[%clk 0:00:07.5]} 40... Rh8 {[%clk 0:01:03.2]} 41. Kd3 {[%clk 0:00:05.7]}
41... h4 {[%clk 0:00:55.7]} 42. Kc3 {[%clk 0:00:02.1]} 42... hxg3 {[%clk
0:00:48.3]} 43. Rg1 {[%clk 0:00:02.7]} 43... Rh3 {[%clk 0:00:41.7]} 44. Kxb3
{[%clk 0:00:02.1]} 44... Kf6 {[%clk 0:00:42.2]} 45. Kc4 {[%clk 0:00:01.9]} 45...
g4 {[%clk 0:00:42.4]} 46. fxg4 {[%clk 0:00:02.1]} 46... Kg5 {[%clk 0:00:42.4]}
47. Kb5 {[%clk 0:00:02.8]} 47... Kxg4 {[%clk 0:00:42.6]} 48. Kc6 {[%clk
0:00:03.6]} 48... Rh6 {[%clk 0:00:42.5]} 49. b4 {[%clk 0:00:03.2]} 49... Kf3
{[%clk 0:00:42.5]} 50. b5 {[%clk 0:00:03.8]} 50... Kf2 {[%clk 0:00:42]} 51. Ra1
{[%clk 0:00:04.2]} 51... g2 {[%clk 0:00:41.9]} 52. b6 {[%clk 0:00:04.8]} 52...
g1=Q {[%clk 0:00:22.4]} 53. Rxg1 {[%clk 0:00:03.8]} 53... Kxg1 {[%clk
0:00:22.7]} 54. b7 {[%clk 0:00:04.7]} 54... Rh8 {[%clk 0:00:20.9]} 55. Kxd6
{[%clk 0:00:05.2]} 55... Kf2 {[%clk 0:00:20]} 56. Kc7 {[%clk 0:00:05.7]} 56...
Rh7+ {[%clk 0:00:17.2]} 57. Kc6 {[%clk 0:00:05.3]} 57... Rh8 {[%clk 0:00:15.5]}
58. d6 {[%clk 0:00:05.5]} 58... Ke3 {[%clk 0:00:15.5]} 59. Kc7 {[%clk
0:00:05.9]} 59... Kxe4 {[%clk 0:00:14]} 60. b8=Q {[%clk 0:00:06.2]} 60... Rxb8
{[%clk 0:00:12.8]} 61. Kxb8 {[%clk 0:00:07.1]} 1-0

[Event "*** Titled Tuesday Blitz"]
[Site "Chess.com"]
[Date "2020.04.14"]
[Round "4"]
[White "ZiggyStardust64"]
[Black "kingnb"]
[Result "1-0"]
[WhiteElo "2613"]
[BlackElo "2409"]
[TimeControl "180+1"]
[EndTime "10:40:46 PDT"]
[Termination "ZiggyStardust64 won by resignation"]

1. e4 {[%clk 0:03:00.9]} 1... d5 {[%clk 0:02:55.8]} 2. exd5 {[%clk 0:03:00.4]}
2... Nf6 {[%clk 0:02:55.3]} 3. d4 {[%clk 0:02:59.2]} 3... Bg4 {[%clk 0:02:54.5]}
4. f3 {[%clk 0:02:57.3]} 4... Bf5 {[%clk 0:02:54.6]} 5. c4 {[%clk 0:02:49.4]}
5... e6 {[%clk 0:02:54.6]} 6. dxe6 {[%clk 0:02:47.4]} 6... Nc6 {[%clk
0:02:54.8]} 7. Be3 {[%clk 0:02:43.9]} 7... Bb4+ {[%clk 0:02:50.9]} 8. Nc3 {[%clk
0:02:43.1]} 8... O-O {[%clk 0:02:43.1]} 9. d5 {[%clk 0:02:28.5]} 9... Qe7 {[%clk
0:02:34.5]} 10. Qd2 {[%clk 0:01:57.9]} 10... Rad8 {[%clk 0:02:29.1]} 11. a3
{[%clk 0:01:50.7]} 11... Bc5 {[%clk 0:02:24.2]} 12. Qf2 {[%clk 0:01:14]} 12...
Bxe3 {[%clk 0:02:18.5]} 13. Qxe3 {[%clk 0:01:14.9]} 13... Rfe8 {[%clk
0:01:36.6]} 14. dxc6 {[%clk 0:01:03.8]} 14... Qf8 {[%clk 0:01:28.6]} 15. Nge2
{[%clk 0:00:33.9]} 15... Bxe6 {[%clk 0:01:24]} 16. cxb7 {[%clk 0:00:24.7]} 16...
Bxc4 {[%clk 0:01:23.1]} 17. Qxa7 {[%clk 0:00:24.8]} 17... Nd5 {[%clk 0:01:10.1]}
18. O-O-O {[%clk 0:00:13.9]} 18... Ne3 {[%clk 0:00:41.8]} 19. Rxd8 {[%clk
0:00:11.8]} 19... Rxd8 {[%clk 0:00:42.7]} 20. Qxe3 {[%clk 0:00:11.4]} 20... Qd6
{[%clk 0:00:40.8]} 21. Qd4 {[%clk 0:00:06.7]} 21... Qh6+ {[%clk 0:00:36.3]} 22.
Qf4 {[%clk 0:00:06.9]} 22... Qe6 {[%clk 0:00:33]} 23. b8=Q {[%clk 0:00:04.7]}
23... Rxb8 {[%clk 0:00:32.3]} 24. Qd4 {[%clk 0:00:02.3]} 24... c5 {[%clk
0:00:28.2]} 25. Qd2 {[%clk 0:00:02.3]} 25... Bb3 {[%clk 0:00:23.8]} 26. Nf4
{[%clk 0:00:03.2]} 26... Qf5 {[%clk 0:00:23.4]} 27. Bd3 {[%clk 0:00:03.5]} 27...
Qg5 {[%clk 0:00:22.1]} 28. Re1 {[%clk 0:00:04.1]} 28... Rd8 {[%clk 0:00:20.8]}
29. Qe3 {[%clk 0:00:04.4]} 29... g6 {[%clk 0:00:19.7]} 30. g3 {[%clk 0:00:04.9]}
30... c4 {[%clk 0:00:19.2]} 31. Qe7 {[%clk 0:00:05.1]} 31... Qxe7 {[%clk
0:00:19.1]} 32. Rxe7 {[%clk 0:00:06]} 32... cxd3 {[%clk 0:00:19.9]} 33. Kd2
{[%clk 0:00:06.6]} 33... Bc2 {[%clk 0:00:19.8]} 34. Re3 {[%clk 0:00:06.9]} 34...
Rb8 {[%clk 0:00:16.7]} 35. Nxd3 {[%clk 0:00:06.9]} 35... Bxd3 {[%clk 0:00:17.6]}
36. Kxd3 {[%clk 0:00:07.2]} 36... Rxb2 {[%clk 0:00:18.5]} 37. Re2 {[%clk
0:00:07.6]} 37... Rb3 {[%clk 0:00:19]} 38. Ra2 {[%clk 0:00:07.8]} 38... Rb7
{[%clk 0:00:19.4]} 39. a4 {[%clk 0:00:08.3]} 39... Rd7+ {[%clk 0:00:19.3]} 40.
Kc2 {[%clk 0:00:08.5]} 40... Rc7 {[%clk 0:00:19.6]} 41. a5 {[%clk 0:00:08.7]}
41... Kf8 {[%clk 0:00:19.7]} 42. a6 {[%clk 0:00:09.1]} 42... Ra7 {[%clk
0:00:19.1]} 43. Nb5 {[%clk 0:00:09.2]} 43... Ra8 {[%clk 0:00:19.3]} 44. a7
{[%clk 0:00:09.6]} 44... Ke7 {[%clk 0:00:18.9]} 45. Nc7 {[%clk 0:00:08.5]} 45...
Rc8 {[%clk 0:00:19.3]} 46. Kd3 {[%clk 0:00:08.2]} 46... Rxc7 {[%clk 0:00:19.9]}
47. a8=Q {[%clk 0:00:07.9]} 47... Rd7+ {[%clk 0:00:20.8]} 48. Ke2 {[%clk
0:00:07.8]} 48... Rd6 {[%clk 0:00:20.9]} 49. Qe4+ {[%clk 0:00:07.2]} 49... Kf6
{[%clk 0:00:21.8]} 50. Qf4+ {[%clk 0:00:07.2]} 50... Ke7 {[%clk 0:00:21.1]} 51.
Ra7+ {[%clk 0:00:06.6]} 51... Rd7 {[%clk 0:00:21.4]} 52. Rxd7+ {[%clk
0:00:06.1]} 52... Kxd7 {[%clk 0:00:22.3]} 53. Qxf7+ {[%clk 0:00:06.8]} 1-0